lending/lending_fUSD_20241229
["ID","MTS","AMOUNT","RATE_DAILY","PERIOD"]
[347120997,1735510242874,-500.0,0.00016463,2]
[347120998,1735510242883,-500.0,0.00016463,2]
[347120999,1735510242892,-3650.22,0.00016463,2]
[347121000,1735510242901,-500.0,0.00016463,2]
[347121003,1735510242910,-500.0,0.00016463,2]
[347121005,1735510242920,-500.0,0.00016463,2]
[347121007,1735510242929,-500.0,0.00016463,2]
[347121009,1735510242938,-500.0,0.00016463,2]
[347121011,1735510242948,-500.0,0.00016463,2]
[347121013,1735510242957,-500.0,0.00016463,2]
[347121015,1735510242967,-636.38046038,0.00016463,2]
[347121018,1735510242976,-173.342967,0.00016463,2]
[347121019,1735510242985,-230.34,0.00016463,2]
[347121022,1735510242994,-725.5,0.00016463,2]
[347121023,1735510243004,-500.0,0.00016463,2]
[347121025,1735510243013,-500.0,0.00016463,2]
[347121027,1735510243023,-186.36881973,0.00016463,2]
[347121030,1735510243032,-500.0,0.00016463,2]
[347121032,1735510243041,-500.0,0.00016463,2]
[347121036,1735510243052,-2323.35,0.00016463,2]
[347121041,1735510243063,-526.34,0.00016463,2]
[347121045,1735510243075,-500.0,0.00016463,2]
[347121048,1735510243086,-500.0,0.00016463,2]
[347121050,1735510243095,-516.95,0.00016463,2]
[347121051,1735510243104,-500.0,0.00016463,2]
[347121053,1735510243113,-500.0,0.00016463,2]
[347121055,1735510243123,-500.0,0.00016463,2]
[347121057,1735510243133,-500.0,0.00016463,2]
[347121059,1735510243141,-532.0,0.00016463,2]
[347121061,1735510243151,-500.0,0.00016463,2]
[347121062,1735510243160,-500.0,0.00016463,2]
[347121064,1735510243169,-535.74,0.00016463,2]
[347121066,1735510243178,-6478.07,0.00016463,2]
[347121068,1735510243187,-500.0,0.00016463,2]
[347121070,1735510243196,-302.91851434,0.00016463,2]
[347121071,1735510243205,-513.08797627,0.00016463,2]
[347121073,1735510243214,-694.79,0.00016463,2]
[347121075,1735510243224,-1734.41,0.00016463,2]
[347121076,1735510243234,-500.0,0.00016463,2]
[347121077,1735510243244,-500.0,0.00016463,2]
[347121078,1735510243253,-500.0,0.00016463,2]
[347121079,1735510243262,-500.0,0.00016463,2]
[347121080,1735510243272,-500.0,0.00016463,2]
[347121081,1735510243282,-500.0,0.00016463,2]
[347121082,1735510243291,-500.0,0.00016463,2]
[347121083,1735510243300,-500.0,0.00016463,2]
[347121084,1735510243310,-500.0,0.00016463,2]
[347121085,1735510243321,-500.0,0.00016463,2]
[347121086,1735510243330,-500.0,0.00016463,2]
[347121087,1735510243340,-500.0,0.00016463,2]
[347121088,1735510243350,-666.85,0.00016463,2]
[347121089,1735510243359,-3902.0,0.00016463,2]
[347121097,1735510243476,-500.0,0.00016463,2]
[347121098,1735510243500,-631.68,0.00016463,2]
[347121099,1735510243509,-500.0,0.00016463,2]
[347121100,1735510243519,-500.0,0.00016463,2]
[347121101,1735510243528,-512.84012146,0.00016463,2]
[347121102,1735510243538,-500.0,0.00016463,2]
[347121103,1735510243547,-634.24788413,0.00016463,2]
[347121104,1735510243556,-500.0,0.00016463,2]
[347121105,1735510243566,-500.0,0.00016463,2]
[347121106,1735510243576,-500.0,0.00016463,2]
[347121107,1735510243585,-500.0,0.00016463,2]
[347121108,1735510243594,-500.0,0.00016463,2]
[347121109,1735510243603,-500.0,0.00016463,2]
[347121110,1735510243613,-500.0,0.00016463,2]
[347121111,1735510243622,-500.0,0.00016463,2]
[347121112,1735510243632,-500.0,0.00016463,2]
[347121113,1735510243641,-546.62,0.00016463,2]
[347121114,1735510243651,-500.0,0.00016463,2]
[347121115,1735510243660,-500.0,0.00016463,2]
[347121116,1735510243669,-558.95,0.00016463,2]
[347121117,1735510243679,-500.0,0.00016463,2]
[347121118,1735510243688,-500.0,0.00016463,2]
[347121119,1735510243698,-827.83,0.00016463,2]
[347121120,1735510243707,-500.0,0.00016463,2]
[347121121,1735510243716,-500.0,0.00016463,2]
[347121122,1735510243726,-500.0,0.00016463,2]
[347121123,1735510243735,-1000.0,0.00016463,30]
[347121124,1735510243744,-500.0,0.00016463,2]
[347121125,1735510243753,-502.62073221,0.00016463,2]
[347121126,1735510243763,-500.0,0.00016463,2]
[347121127,1735510243773,-839.54,0.00016463,2]
[347121128,1735510243782,-500.0,0.00016463,2]
[347121129,1735510243791,-500.0,0.00016463,2]
[347121130,1735510243800,-656.0,0.00016463,2]
[347121131,1735510243809,-500.0,0.00016463,2]
[347121132,1735510243821,-500.0,0.00016463,2]
[347121133,1735510243831,-500.0,0.00016463,2]
[347121134,1735510243841,-500.0,0.00016463,2]
[347121135,1735510243851,-500.0,0.00016463,2]
[347121136,1735510243860,-500.0,0.00016463,2]
[347121137,1735510243869,-500.0,0.00016463,2]
[347121138,1735510243879,-500.0,0.00016463,2]
[347121139,1735510243888,-500.0,0.00016463,2]
[347121140,1735510243897,-500.0,0.00016463,2]
[347121141,1735510243910,-500.0,0.00016463,2]
[347121142,1735510243920,-500.0,0.00016463,2]
[347121143,1735510243929,-500.0,0.00016463,2]
[347121144,1735510243939,-604.48,0.00016463,2]
[347121145,1735510243948,-500.0,0.00016463,2]
[347121146,1735510243957,-709.16,0.00016463,2]
[347121147,1735510243967,-500.0,0.00016463,2]
[347121148,1735510243976,-500.0,0.00016463,2]
[347121149,1735510243985,-622.81,0.00016463,2]
[347121150,1735510243995,-500.0,0.00016463,2]
[347121151,1735510244004,-1732.27,0.00016463,2]
[347121152,1735510244013,-500.0,0.00016463,2]
[347121153,1735510244023,-803.65,0.00016463,2]
[347121154,1735510244032,-500.0,0.00016463,2]
[347121155,1735510244042,-10571.56,0.00016463,2]
[347121156,1735510244051,-500.0,0.00016463,2]
[347121157,1735510244060,-500.0,0.00016463,2]
[347121158,1735510244073,-500.0,0.00016463,2]
[347121159,1735510244082,-500.0,0.00016463,2]
[347121160,1735510244091,-500.0,0.00016463,2]
[347121161,1735510244101,-500.0,0.00016463,2]
[347121162,1735510244110,-500.0,0.00016463,2]
[347121163,1735510244121,-546.27234903,0.00016464,2]
[347121164,1735510244131,-500.0,0.00016464,2]
[347121165,1735510244141,-449.84053968,0.00016464,2]
[347121166,1735510244151,-500.0,0.00016464,2]
[347121167,1735510244160,-500.0,0.00016464,2]
[347121168,1735510244170,-500.37225671,0.00016464,2]
[347121169,1735510244179,-500.0,0.00016464,2]
[347121170,1735510244190,-500.40978399,0.00016464,2]
[347121171,1735510244200,-500.0,0.00016464,2]
[347121172,1735510244209,-324.87180575,0.00016464,2]
[347121173,1735510244218,-500.33875625,0.00016464,2]
[347121174,1735510244227,-500.0,0.00016464,2]
[347121175,1735510244237,-500.5363035,0.00016464,2]
[347121176,1735510244246,-500.39625089,0.00016464,2]
[347121177,1735510244256,-500.0,0.00016464,2]
[347121178,1735510244265,-391.49208298,0.00016464,2]
[347121179,1735510244274,-500.0,0.00016464,2]
[347121180,1735510244283,-500.0,0.00016464,2]
[347121181,1735510244293,-500.0,0.00016464,2]
[347121182,1735510244302,-500.0,0.00016464,2]
[347121183,1735510244313,-500.0,0.00016464,2]
[347121184,1735510244322,-500.0,0.00016464,2]
[347121185,1735510244332,-500.0,0.00016464,2]
[347121186,1735510244342,-503.03940796,0.00016464,2]
[347121187,1735510244351,-501.83621627,0.00016464,2]
[347121188,1735510244360,-502.4199529,0.00016464,2]
[347121189,1735510244370,-500.0,0.00016464,2]
[347121190,1735510244379,-500.0,0.00016464,2]
[347121191,1735510244389,-500.0,0.00016464,2]
[347121192,1735510244398,-500.0,0.00016464,2]
[347121193,1735510244407,-500.0,0.00016464,2]
[347121194,1735510244417,-500.0,0.00016464,2]
[347121195,1735510244427,-507.90457725,0.00016464,2]
[347121196,1735510244437,-500.0,0.00016464,2]
[347121197,1735510244446,-614.19270684,0.00016464,2]
[347121198,1735510244456,-500.0,0.00016464,2]
[347121199,1735510244466,-500.0,0.00016464,2]
[347121200,1735510244475,-500.0,0.00016464,2]
[347121201,1735510244484,-500.0,0.00016464,2]
[347121202,1735510244493,-500.0,0.00016464,2]
[347121203,1735510244503,-500.0,0.00016464,2]
[347121204,1735510244512,-500.0,0.00016464,2]
[347121205,1735510244522,-500.0,0.00016464,2]
[347121206,1735510244532,-500.0,0.00016464,2]
[347121207,1735510244542,-500.0,0.00016464,2]
[347121208,1735510244552,-500.0,0.00016464,2]
[347121209,1735510244562,-503.83862218,0.00016464,2]
[347121210,1735510244572,-500.0,0.00016464,2]
[347121211,1735510244582,-328.70109905,0.00016464,2]
[347121212,1735510244592,-323.80932083,0.00016464,2]
[347121213,1735510244601,-500.0,0.00016464,2]
[347121214,1735510244611,-500.0,0.00016464,2]
[347121215,1735510244620,-500.0,0.00016464,2]
[347121216,1735510244630,-500.0,0.00016464,2]
[347121217,1735510244640,-500.0,0.00016464,2]
[347121218,1735510244649,-500.0,0.00016464,2]
[347121219,1735510244659,-500.0,0.00016464,2]
[347121220,1735510244669,-500.0,0.00016464,2]
[347121221,1735510244678,-500.0,0.00016464,2]
[347121222,1735510244688,-500.0,0.00016464,2]
[347121223,1735510244698,-500.0,0.00016464,2]
[347121224,1735510244707,-500.0,0.00016464,2]
[347121225,1735510244717,-500.0,0.00016464,2]
[347121226,1735510244727,-500.0,0.00016464,2]
[347121227,1735510244737,-500.0,0.00016464,2]
[347121228,1735510244746,-500.0,0.00016464,2]
[347121229,1735510244756,-500.0,0.00016464,2]
[347121230,1735510244766,-500.0,0.00016464,2]
[347121231,1735510244775,-500.0,0.00016464,2]
[347121232,1735510244785,-500.0,0.00016464,2]
[347121233,1735510244794,-500.0,0.00016464,2]
[347121234,1735510244803,-500.0,0.00016464,2]
[347121235,1735510244814,-500.0,0.00016464,2]
[347121236,1735510244823,-500.0,0.00016464,2]
[347121237,1735510244832,-500.0,0.00016464,2]
[347121238,1735510244842,-500.0,0.00016464,2]
[347121239,1735510244852,-500.0,0.00016464,2]
[347121240,1735510244861,-500.0,0.00016464,2]
[347121241,1735510244871,-500.0,0.00016464,2]
[347121242,1735510244880,-421.5017561,0.00016464,2]
[347121243,1735510244889,-500.0,0.00016464,2]
[347121244,1735510244899,-209.26437011,0.00016464,2]
[347121245,1735510244908,-500.0,0.00016464,2]
[347121246,1735510244919,-500.0,0.00016464,2]
[347121247,1735510244929,-500.0,0.00016464,2]
[347121248,1735510244939,-645.82337197,0.00016464,2]
[347121249,1735510244948,-500.0,0.00016464,2]
[347121250,1735510244957,-500.0,0.00016464,2]
[347121251,1735510244967,-500.0,0.00016464,2]
[347121252,1735510244976,-500.0,0.00016464,2]
[347121253,1735510244985,-500.0,0.00016464,2]
[347121254,1735510244994,-500.0,0.00016464,2]
[347121255,1735510245004,-500.0,0.00016464,2]
[347121256,1735510245014,-500.0,0.00016464,2]
[347121257,1735510245023,-500.0,0.00016464,2]
[347121258,1735510245033,-500.0,0.00016464,2]
[347121259,1735510245043,-500.0,0.00016464,2]
[347121260,1735510245053,-500.0,0.00016464,2]
[347121261,1735510245062,-500.0,0.00016464,2]
[347121262,1735510245073,-500.0,0.00016464,2]
[347121263,1735510245085,-500.0,0.00016464,2]
[347121264,1735510245094,-589.87,0.00016464,2]
[347121265,1735510245104,-500.0,0.00016464,2]
[347121266,1735510245115,-500.0,0.00016464,2]
[347121267,1735510245124,-500.0,0.00016464,2]
[347121268,1735510245134,-500.0,0.00016464,2]
[347121269,1735510245143,-500.0,0.00016464,2]
[347121270,1735510245156,-500.0,0.00016464,2]
[347121271,1735510245166,-500.0,0.00016464,2]
[347121272,1735510245176,-500.0,0.00016464,2]
[347121273,1735510245186,-500.0,0.00016464,2]
[347121274,1735510245195,-500.0,0.00016464,2]
[347121275,1735510245204,-500.0,0.00016464,2]
[347121276,1735510245214,-500.0,0.00016464,2]
[347121277,1735510245224,-500.0,0.00016464,2]
[347121278,1735510245233,-500.0,0.00016464,2]
[347121279,1735510245243,-500.0,0.00016464,2]
[347121280,1735510245252,-500.0,0.00016464,2]
[347121281,1735510245262,-500.0,0.00016464,2]
[347121282,1735510245271,-500.0,0.00016464,2]
[347121283,1735510245281,-500.0,0.00016464,2]
[347121284,1735510245290,-500.0,0.00016464,2]
[347121285,1735510245300,-593.54,0.00016464,2]
[347121286,1735510245309,-500.0,0.00016464,2]
[347121287,1735510245320,-500.0,0.00016464,2]
[347121288,1735510245329,-500.0,0.00016464,2]
[347121289,1735510245339,-500.0,0.00016464,2]
[347121290,1735510245348,-500.0,0.00016464,2]
[347121291,1735510245358,-500.0,0.00016464,2]
[347121292,1735510245367,-772.91,0.00016464,2]
[347121293,1735510245377,-500.0,0.00016464,2]
[347121294,1735510245386,-500.0,0.00016464,2]
[347121295,1735510245396,-500.0,0.00016464,2]
[347121296,1735510245406,-500.0,0.00016464,2]
[347121297,1735510245416,-500.0,0.00016464,2]
[347121298,1735510245534,-500.0,0.00016464,2]
[347121299,1735510245556,-500.0,0.00016464,2]
[347121300,1735510245566,-816.32,0.00016464,2]
[347121301,1735510245576,-500.0,0.00016464,2]
[347121302,1735510245586,-500.0,0.00016464,2]
[347121303,1735510245595,-545.32,0.00016464,2]
[347121304,1735510245605,-500.0,0.00016464,2]
[347121305,1735510245617,-500.0,0.00016464,2]
[347121306,1735510245626,-531.56,0.00016464,2]
[347121307,1735510245636,-500.0,0.00016464,2]
[347121308,1735510245646,-500.0,0.00016464,2]
[347121309,1735510245656,-500.0,0.00016464,2]
[347121310,1735510245665,-500.0,0.00016464,2]
[347121311,1735510245675,-500.0,0.00016464,2]
[347121312,1735510245684,-500.0,0.00016464,2]
[347121313,1735510245694,-500.0,0.00016464,2]
[347121314,1735510245703,-500.0,0.00016464,2]
[347121315,1735510245713,-500.0,0.00016464,2]
[347121316,1735510245723,-500.0,0.00016464,2]
[347121317,1735510245732,-500.0,0.00016464,2]
[347121318,1735510245742,-500.0,0.00016464,2]
[347121319,1735510245752,-615.54,0.00016464,2]
[347121320,1735510245761,-500.0,0.00016464,2]
[347121321,1735510245771,-500.0,0.00016464,2]
[347121322,1735510245780,-500.0,0.00016464,2]
[347121324,1735510245790,-500.0,0.00016464,2]
[347121326,1735510245800,-505.34708306,0.00016464,2]
[347121328,1735510245810,-500.0,0.00016464,2]
[347121329,1735510245823,-223.62173223,0.00016464,2]
[347121330,1735510245833,-500.0,0.00016464,2]
[347121331,1735510245842,-500.0,0.00016464,2]
[347121332,1735510245853,-152.47930859,0.00016464,2]
[347121333,1735510245863,-500.0,0.00016464,2]
[347121334,1735510245874,-500.0,0.00016464,2]
[347121335,1735510245884,-500.0,0.00016464,2]
[347121336,1735510245893,-500.0,0.00016464,2]
[347121337,1735510245902,-500.0,0.00016464,2]
[347121338,1735510245912,-500.0,0.00016464,2]
[347121339,1735510245922,-500.0,0.00016464,2]
[347121340,1735510245931,-500.0,0.00016464,2]
[347121341,1735510245941,-500.0,0.00016464,2]
[347121342,1735510245950,-500.0,0.00016464,2]
[347121343,1735510245959,-500.0,0.00016464,2]
[347121344,1735510245969,-500.0,0.00016464,2]
[347121345,1735510245982,-500.0,0.00016464,2]
[347121346,1735510245992,-500.0,0.00016464,2]
[347121347,1735510246002,-500.0,0.00016464,2]
[347121348,1735510246011,-500.0,0.00016464,2]
[347121349,1735510246021,-500.0,0.00016464,2]
[347121350,1735510246030,-500.0,0.00016464,2]
[347121351,1735510246039,-500.0,0.00016464,2]
[347121352,1735510246048,-500.0,0.00016464,2]
[347121353,1735510246058,-500.0,0.00016464,2]
[347121354,1735510246073,-500.0,0.00016464,2]
[347121355,1735510246082,-500.0,0.00016464,2]
[347121356,1735510246091,-500.0,0.00016464,2]
[347121357,1735510246101,-500.0,0.00016464,2]
[347121358,1735510246111,-500.0,0.00016464,2]
[347121359,1735510246124,-500.0,0.00016464,2]
[347121360,1735510246134,-593.66,0.00016464,2]
[347121361,1735510246143,-500.0,0.00016464,2]
[347121362,1735510246154,-500.0,0.00016464,2]
[347121363,1735510246164,-500.0,0.00016464,2]
[347121364,1735510246173,-500.0,0.00016464,2]
[347121365,1735510246184,-500.0,0.00016464,2]
[347121366,1735510246193,-500.0,0.00016464,2]
[347121367,1735510246203,-500.0,0.00016464,2]
[347121368,1735510246213,-318.27383962,0.00016464,2]
[347121369,1735510246222,-500.0,0.00016464,2]
[347121370,1735510246231,-500.0,0.00016464,2]
[347121371,1735510246241,-500.0,0.00016464,2]
[347121372,1735510246250,-500.0,0.00016464,2]
[347121373,1735510246259,-500.0,0.00016464,2]
[347121374,1735510246269,-500.0,0.00016464,2]
[347121375,1735510246278,-500.0,0.00016464,2]
[347121376,1735510246288,-500.0,0.00016464,2]
[347121377,1735510246297,-500.0,0.00016464,2]
[347121378,1735510246307,-893.47,0.00016464,2]
[347121379,1735510246319,-500.0,0.00016464,2]
[347121380,1735510246328,-500.0,0.00016464,2]
[347121381,1735510246338,-500.0,0.00016464,2]
[347121382,1735510246347,-738.05,0.00016464,2]
[347121383,1735510246356,-500.0,0.00016464,2]
[347121384,1735510246365,-500.0,0.00016464,2]
[347121385,1735510246375,-500.0,0.00016464,2]
[347121386,1735510246384,-500.0,0.00016464,2]
[347121387,1735510246394,-500.0,0.00016464,2]
[347121388,1735510246403,-500.0,0.00016464,2]
[347121389,1735510246413,-500.0,0.00016464,2]
[347121390,1735510246422,-500.0,0.00016464,2]
[347121391,1735510246431,-1086.78,0.00016464,2]
[347121392,1735510246440,-500.0,0.00016464,2]
[347121393,1735510246449,-500.0,0.00016464,2]
[347121394,1735510246459,-500.0,0.00016464,2]
[347121395,1735510246468,-339.47651481,0.00016464,2]
[347121396,1735510246478,-500.0,0.00016464,2]
[347121397,1735510246487,-500.0,0.00016464,2]
[347121398,1735510246497,-500.0,0.00016464,2]
[347121399,1735510246506,-3488.83,0.00016464,2]
[347121400,1735510246515,-500.0,0.00016464,2]
[347121401,1735510246525,-500.0,0.00016464,2]
[347121402,1735510246534,-500.0,0.00016464,2]
[347121403,1735510246543,-500.0,0.00016464,2]
[347121404,1735510246553,-500.0,0.00016464,2]
[347121405,1735510246565,-1191.94,0.00016464,2]
[347121406,1735510246574,-500.0,0.00016464,2]
[347121407,1735510246584,-500.0,0.00016464,2]
[347121408,1735510246593,-500.0,0.00016464,2]
[347121409,1735510246604,-500.0,0.00016464,2]
[347121410,1735510246613,-500.0,0.00016464,2]
[347121411,1735510246623,-500.0,0.00016464,2]
[347121412,1735510246632,-1413.25,0.00016464,2]
[347121414,1735510246641,-2857.22,0.00016464,2]
[347121415,1735510246650,-500.0,0.00016464,2]
[347121416,1735510246659,-2869.66,0.00016464,2]
[347121417,1735510246669,-1364.94,0.00016464,2]
[347121418,1735510246678,-3600.27,0.00016464,2]
[347121419,1735510246687,-1111.07,0.00016464,2]
[347121420,1735510246696,-1332.59,0.00016464,2]
[347121421,1735510246705,-5095.81,0.00016464,2]
[347121422,1735510246715,-500.0,0.00016464,2]
[347121423,1735510246724,-153.03077042,0.00016473,2]
[347121425,1735510246734,-162.96763327,0.00016473,2]
[347121427,1735510246744,-500.0,0.00016473,2]
[347121428,1735510246753,-1000.0,0.00016484,4]
[347121430,1735510246763,-306.27619036,0.0001649,2]
[347121432,1735510246771,-500.0,0.00016491,2]
[347121434,1735510246780,-3939.120014,0.00016491,2]
[347121435,1735510246789,-12285.2414959,0.00016491,2]
[347121436,1735510246799,-1286.83686331,0.00016491,2]
[347121437,1735510247297,-28819.27326049,0.00016491,2]
[347121438,1735510247306,-769.9,0.00016493,2]
[347121439,1735510247316,-871.7,0.00016493,2]
[347121440,1735510247325,-469.32,0.00016493,2]
[347121441,1735510247335,-316.62,0.00016493,2]
[347121442,1735510247344,-151.16,0.00016493,2]
[347121443,1735510247354,-1430.04,0.00016493,2]
[347121444,1735510247363,-150.0,0.00016493,2]
[347121445,1735510247372,-150.0,0.00016493,2]
[347121446,1735510247382,-150.0,0.00016493,2]
[347121447,1735510247391,-496.68,0.00016494,2]
[347121448,1735510247401,-1201.5,0.00016494,2]
[347121449,1735510247410,-500.0,0.00016495,2]
[347121450,1735510247419,-500.0,0.00016495,2]
[347121451,1735510247429,-500.0,0.00016495,2]
[347121452,1735510247438,-1207.17,0.00016495,2]
[347121453,1735510247447,-1000.0,0.00016495,2]
[347121454,1735510247456,-2216.03,0.00016495,2]
[347121455,1735510247466,-908786.52182189,0.00016495,2]
[347121456,1735510247483,-4372.14807425,0.00016495,2]
[347121457,1735510247495,-12037.45376007,0.00016495,2]
[347121458,1735510247506,-1358.50341627,0.00016495,2]
[347121459,1735510247518,-1072.9,0.00016495,2]
[347121460,1735510247533,-3715.78984,0.00016495,2]
[347121461,1735510247544,-17589.58217172,0.00016495,2]
[347121462,1735510247556,-21016.77795438,0.00016495,2]
[347121463,1735510247568,-4929.66514748,0.00016495,2]
[347121464,1735510247579,-258.77149165,0.00016495,2]
[347121465,1735510247590,-337.83016865,0.00016495,2]
[347121466,1735510247601,-933.65,0.00016495,2]
[347121467,1735510247622,-17183.079,0.00016495,2]
[347121468,1735510247633,-3049.8516,0.00016495,2]
[347121469,1735510247644,-4671.7431669,0.00016495,2]
[347121470,1735510247870,-500.0,0.00016463,2]
[347121471,1735510247880,-3093.47834983,0.00016495,2]
[347121472,1735510247891,-1746.3324078,0.00016495,2]
[347121473,1735510247904,-4980.16031994,0.00016495,2]
[347121474,1735510247916,-11148.5019612,0.00016495,2]
[347121475,1735510247934,-29522.83619325,0.00016495,2]
[347121476,1735510247986,-495.13,0.000164,2]
[347121477,1735510247995,-224375.99756392,0.00016495,2]
[347121478,1735510248007,-3728.44,0.00016495,2]
[347121479,1735510248018,-522.68000058,0.00016495,2]
[347121480,1735510248030,-2716.2849513,0.00016495,2]
[347121481,1735510248042,-475.8703,0.00016495,2]
[347121482,1735510248062,-630.0,0.00016495,2]
[347121483,1735510248078,-310.5,0.00016495,2]
[347121484,1735510248099,-2315.9462,0.00016495,2]
[347121485,1735510248111,-917.24959536,0.00016495,2]
[347121486,1735510248149,-4759.55636146,0.00016495,2]
[347121487,1735510248161,-456.875,0.00016495,2]
[347121488,1735510248172,-56180.81355393,0.00016495,2]
[347121489,1735510248183,-1101.98242668,0.00016495,2]
[347121490,1735510248195,-556.71333741,0.00016495,2]
[347121491,1735510248211,-76642.27246518,0.00016495,2]
[347121492,1735510248222,-90013.18184875,0.00016495,2]
[347121493,1735510248243,-1511.30841541,0.00016495,2]
[347121494,1735510248450,-1290.83521863,0.00016495,2]
[347121495,1735510248466,-7488.90594671,0.00016495,2]
[347121496,1735510248483,-422.90000105,0.00016495,2]
[347121497,1735510248495,-1628.17427656,0.00016495,2]
[347121498,1735510248507,-7017.51950224,0.00016495,2]
[347121499,1735510248518,-924.49269558,0.00016495,2]
[347121500,1735510248530,-2506.71483423,0.00016495,2]
[347121501,1735510248674,-29810.42719147,0.00016495,2]
[347121502,1735510248687,-1403.42391454,0.00016495,2]
[347121503,1735510248703,-281.16165042,0.00016495,2]
[347121504,1735510248715,-2938.37923822,0.00016495,2]
[347121505,1735510248727,-10128.80301753,0.00016495,2]
[347121506,1735510248738,-251.88790032,0.00016495,2]
[347121507,1735510248761,-456.4006247,0.00016391,2]
[347121508,1735510248771,-2955.63407839,0.00016495,2]
[347121509,1735510248783,-2465.5210002,0.00016495,2]
[347121510,1735510248794,-5862.20890592,0.00016495,2]
[347121511,1735510248806,-18587.40094578,0.00016495,2]
[347121512,1735510248926,-495.23709628,0.00016495,2]
[347121513,1735510248937,-764.55373,0.00016495,2]
[347121514,1735510248948,-487.72164361,0.00016495,2]
[347121515,1735510249010,-71312.85242056,0.00016495,2]
[347121516,1735510249021,-6332.2849218,0.00016495,2]
[347121517,1735510249712,-500.0,0.00016399,2]
[347121518,1735510249721,-500.0,0.00016463,2]
[347121519,1735510249731,-500.0,0.00016463,2]
[347121520,1735510249740,-500.0,0.00016463,2]
[347121521,1735510249750,-500.0,0.00016463,2]
[347121522,1735510249759,-12774.98900001,0.00016495,2]
[347121523,1735510249776,-386.21499265,0.00016463,2]
[347121524,1735510249801,-500.0,0.00016462,2]
[347121525,1735510249811,-113.78500735,0.00016463,2]
[347121526,1735510249824,-10020.81499215,0.00016495,2]
[347121527,1735510249848,-565.03,0.00016494,2]
[347121528,1735510249857,-421.49863358,0.00016495,2]
[347121529,1735510249869,-527.077714,0.00016495,2]
[347121530,1735510249896,-917.82,0.00016495,2]
[347121531,1735510249906,-37131.25955746,0.00016495,2]
[347121532,1735510249918,-2231.71493488,0.00016495,2]
[347121533,1735510250018,-37276.40000001,0.00016495,2]
[347121534,1735510250030,-878081.53073493,0.00016495,2]
[347121535,1735510250046,-50650.0,0.00016495,2]
[347121537,1735510470787,100816.0,0.00023,120]
[347121538,1735510600924,500.0,0.00016496,120]
[347121539,1735510601182,500.0,0.00016523,120]
[347121540,1735510601614,500.0,0.0001655,120]
[347121541,1735510601936,263.16,0.00016578,120]
[347121542,1735510908837,287.62,0.00011011,2]
[347121543,1735510918306,179.68,0.00010137,2]
[347121545,1735511119223,814.6826059,9e-05,2]
[347121546,1735511128958,7005.13373211,9e-05,2]
[347121547,1735511135748,5000.0,8e-05,2]
[347121548,1735511154245,15859.34016782,6.94e-05,2]
[347121553,1735511226499,500.0,0.00016496,120]
[347121554,1735511226777,500.0,0.00016523,120]
[347121555,1735511227054,526.32,0.0001655,120]
[347121558,1735511321838,150.123007,0.00023,120]
[347121559,1735511327599,150.123007,0.00023,120]
[347121560,1735511328080,150.123007,0.00023,120]
[347121561,1735511328562,150.123007,0.00023,120]